Cogmind - Beta 14 @@@ ROGUE MODE // 2024.09.12 @ 09:56:31 Player: ZarZap Result: Self-destructed Performance ------------- Evolutions (1) 500 Regions Visited (3) 600 Robots Destroyed (12) 60 Value Destroyed (142) 142 Prototype IDs (0) 0 Alien Tech Used (0) 0 Bonus (0) 0 TOTAL SCORE: 1302 Bonus ------- None Cogmind --------- Core Integrity 259/400 Matter 246/300 Energy 100/100 System Corruption 14% Temperature Cool (0) Movement Core (350) Ox6 Location -9/Materials Parts ------- > --- POWER (2) -------- (None) > --- PROPULSION (2) --- (None) > --- UTILITY (2) ------ Large Storage Unit > --- WEAPON (3) ------- (None) > --- INVENTORY (15) --- Flight Unit Peak State ------------ > --- POWER ------------ Light Ion Engine Light Ion Engine > --- PROPULSION ------- Flight Unit Flight Unit > --- UTILITY ---------- Small Storage Unit Sensor Array > --- WEAPON ----------- Beam Rifle Light Assault Rifle Light Assault Rifle > --- INVENTORY -------- Ion Engine Flight Unit Flight Unit Light Assault Rifle [Rating: 10] Favorites ----------- Power Light Ion Engine Engine Light Ion Engine Propulsion Flight Unit Wheel Wheel Flight Unit Flight Unit Utility Small Storage Unit Device Sensor Array Storage Small Storage Unit Weapon Light Assault Rifle Energy Gun Small Laser Ballistic Gun Light Assault Rifle Build | -11 -10 -10 -9 ------- Run | Yrd Mat Min Mat Slots Evolved 2 | . . . 2 Power 1 | . . . 1 Propulsion . | . . . . Utility . | . . . . Weapon 1 | . . . 1 Parts Attached 19 | 6 1 4 8 Power 4 | 1 1 1 1 Engine 4 | 1 1 1 1 Core . | . . . . Reactor . | . . . . Propulsion 7 | 2 . 2 3 Treads . | . . . . Leg . | . . . . Wheel 2 | 2 . . . Hover . | . . . . Flight 5 | . . 2 3 Utility 3 | 1 . . 2 Device 1 | . . . 1 Storage 2 | 1 . . 1 Processor . | . . . . Hackware . | . . . . Protection . | . . . . Artifact . | . . . . Weapon 5 | 2 . 1 2 Energy Gun 2 | 1 . . 1 Energy Cannon . | . . . . Ballistic Gun 3 | 1 . 1 1 Ballistic Cannon . | . . . . Launcher . | . . . . Special Weapon . | . . . . Impact Weapon . | . . . . Slashing Weapon . | . . . . Piercing Weapon . | . . . . Special Melee Weapon . | . . . . Unidentified Prototypes . | . . . . Parts Lost 11 | . . . 11 Power 2 | . . . 2 Propulsion 5 | . . . 5 Utility 1 | . . . 1 Weapon 3 | . . . 3 Highest Loss Streak 7 | . . . 7 To Critical Strikes 1 | . . . 1 Average Slot Usage (%) 75 | . 85 85 69 Engine 10 | . 14 14 7 Wheel 3 | . 28 3 . Flight 19 | . . 24 19 Device 6 | . . . 9 Storage 12 | . 14 14 11 Energy Gun 4 | . 14 9 . Ballistic Gun 19 | . 14 18 20 Peak Build Rating 10 | 6 6 6 10 Average Rating 6 | 4 6 6 6 On Entrance 4 | . 6 6 6 Naked Turns . | . . . . Heaviest Build 25 | 10 10 10 25 Greatest Support 20 | 20 20 20 8 Greatest Overweight (x) 6 | . . 2 6 Average Overweight (x) . | . . . . Largest Inventory Capacity 15 | 8 8 8 15 Average Capacity 8 | 7 8 8 8 Most Carried 6 | 2 3 6 6 Average Carried 2 | . 2 4 2 Final Capacity 15 | 8 8 8 15 Final Carried 6 | 2 3 6 1 Class Distribution -------------------- 100% | Mutant Dominant Class ---------------- Mutant | -10/Materials Mutant | -10/Mines Mutant | -9/Materials Resources | -11 -10 -10 -9 ----------- Run | Yrd Mat Min Mat Matter Collected 359 | 119 . 139 101 Remotely . | . . . . Salvage Created 280 | . . 169 111 Parts 29 | . . 18 11 Haulers Intercepted . | . . . . Recyclers Shooed 1 | . . 1 . Parts Field Recycled . | . . . . Retrieved Matter . | . . . . Parts Self-Destructed . | . . . . Prevented . | . . . . Kills | -11 -10 -10 -9 ------- Run | Yrd Mat Min Mat Combat Hostiles Destroyed 10 | . . 6 4 Guns 10 | . . 6 4 Classes Destroyed 4 | . . 2 2 Worker 1 | . . . 1 Recycler 1 | . . 1 . Swarmer 9 | . . 6 3 Sentry 1 | . . . 1 Best Kill Streak 4 | . . 3 4 Combat Bots Only 3 | . . 3 3 Max Kills in Single Turn 2 | . . 2 1 Gunslinging 1 | . . 1 . Exploded . | . . . . Melee . | . . . . Uniques/NPCs Destroyed . | . . . . Combat | -11 -10 -10 -9 -------- Run | Yrd Mat Min Mat Hostile Shots Fired 97 | . . 32 65 Missed 22 | . . 5 17 Damage Taken 878 | . . 227 651 Core 190 | . . 49 141 Absorbed by Shields . | . . . . Core Remaining (%) 90 | 100 . 80 . Volleys Fired 36 | . . 16 20 Largest 3 | . . 2 3 Hottest 63 | . . 60 63 Shots Fired 74 | . . 32 42 Gun 74 | . . 32 42 Cannon . | . . . . Launcher . | . . . . Special . | . . . . Kinetic 58 | . . 16 42 Thermal 16 | . . 16 . Explosive . | . . . . Electromagnetic . | . . . . Robot Hit Streak 6 | . . 4 6 Robot Miss Streak 5 | . . 5 3 Penetration Max . | . . . . Secondary Targets 1 | . . 1 . Max Gunslinging Chain 1 | . . 1 . Shots Hit Robots 37 | . . 11 26 Core Hits 17 | . . 8 9 Critical Kills . | . . . . Critical Parts Destroyed . | . . . . Critical Strikes . | . . . . Melee Attacks . | . . . . Impact . | . . . . Slashing . | . . . . Piercing . | . . . . Sneak Attacks . | . . . . Combat Hostiles . | . . . . Follow-up Attacks . | . . . . Damage Inflicted 383 | . . 114 269 Guns 383 | . . 114 269 Cannons . | . . . . Explosions . | . . . . Melee . | . . . . Ramming . | . . . . Kinetic 325 | . . 56 269 Thermal 58 | . . 58 . Explosive . | . . . . Electromagnetic . | . . . . Impact . | . . . . Slashing . | . . . . Piercing . | . . . . Highest Corruption 14 | . . . 14 Average Corruption 8 | . . . 8 Corruption Purged . | . . . . Corruption Blocked . | . . . . Effects 1 | . . . 1 Message Errors 1 | . . . 1 Overload Shots . | . . . . Overflow Damage . | . . . . Projectiles . | . . . . Explosions . | . . . . Melee . | . . . . Knockbacks . | . . . . Impact . | . . . . Kinetic . | . . . . Secondary . | . . . . Self-Inflicted Damage . | . . . . Shots . | . . . . Rammed . | . . . . Targets Rammed . | . . . . Kicked . | . . . . Crushed . | . . . . Highest Temperature 78 | . . 78 44 Average Temperature 23 | . . 27 17 Received Heat Transfer 228 | . . . 228 Siege Activations . | . . . . Robots Corrupted . | . . . . Combat Hostiles . | . . . . Parts Fried . | . . . . Impact Corruptions . | . . . . Robots Melted . | . . . . Combat Hostiles . | . . . . Parts Melted . | . . . . Heat Transferred 125 | . . 125 . Parts Sabotaged . | . . . . Parts Stolen . | . . . . Parts Stripped . | . . . . Power Chain Reactions . | . . . . Alert | -11 -10 -10 -9 ------- Run | Yrd Mat Min Mat Peak Influence 199 | . . 150 199 Initial 58 | . . 5 58 Average 87 | . . 100 109 Maximum Alert Level . | . . . . Low Security (%) 100 | 100 100 100 100 Level 1 . | . . . . Level 2 . | . . . . Level 3 . | . . . . Level 4 . | . . . . Level 5 . | . . . . High Security . | . . . . Max Security . | . . . . Squads Dispatched . | . . . . Investigation . | . . . . Extermination . | . . . . Reinforcement . | . . . . Assault . | . . . . Garrison . | . . . . Intercept . | . . . . Searches Triggered . | . . . . Construction Impeded . | . . . . Haulers Reinforced . | . . . . Active Scanning Responses . | . . . . Cargo Convoy Interrupts . | . . . . Stealth | -11 -10 -10 -9 --------- Run | Yrd Mat Min Mat Distress Signals 1 | . 1 . . Communications Jammed . | . . . . Distress Signals . | . . . . Times Spotted 15 | . 1 5 9 Peak Tracking Total 5 | . 4 3 5 Tactical Retreats 2 | . . . 2 Traps | -11 -10 -10 -9 ------- Run | Yrd Mat Min Mat Traps Triggered . | . . . . Indirectly . | . . . . Trap Hack Attempts . | . . . . Triggered . | . . . . Disarmed . | . . . . Reprogrammed . | . . . . Reused . | . . . . Traps Extracted . | . . . . Installed . | . . . . Triggered . | . . . . Machines | -11 -10 -10 -9 ---------- Run | Yrd Mat Min Mat Machines Disabled . | . . . . Max in Single Turn . | . . . . Machines Repaired . | . . . . Machines Dismantled . | . . . . Machines Sabotaged . | . . . . Overloaded Fab Kills . | . . . . Hacking | -11 -10 -10 -9 --------- Run | Yrd Mat Min Mat Machines Accessed . | . . . . Terminals . | . . . . Fabricators . | . . . . Repair Stations . | . . . . Recycling Units . | . . . . Scanalyzers . | . . . . Garrison Access . | . . . . Total Hacks . | . . . . Successful . | . . . . Failed . | . . . . Catastrophic . | . . . . Database Lockouts . | . . . . Manual . | . . . . Terminals . | . . . . Fabricators . | . . . . Repair Stations . | . . . . Recycling Units . | . . . . Scanalyzers . | . . . . Garrison Access . | . . . . Terminal Hacks . | . . . . Fabricator Hacks . | . . . . Repair Station Hacks . | . . . . Recycling Unit Hacks . | . . . . Scanalyzer . | . . . . Garrison Access Hacks . | . . . . Unauthorized Hacks . | . . . . Terminals . | . . . . Fabricators . | . . . . Repair Stations . | . . . . Recycling Units . | . . . . Scanalyzers . | . . . . Garrison Access . | . . . . Data Cores Recovered . | . . . . Used . | . . . . Hacking Detections . | . . . . Full Trace Events . | . . . . Feedback Events . | . . . . Feedback Blocked . | . . . . Robot Schematics Acquired . | . . . . Robots Built . | . . . . Authchips . | . . . . Time . | . . . . Total Robot Build Rating . | . . . . Part Schematics Acquired . | . . . . Parts Built . | . . . . Authchips . | . . . . Time . | . . . . Total Part Build Rating . | . . . . Parts Repaired . | . . . . Time . | . . . . Parts Recycled . | . . . . Recycled Matter . | . . . . Retrieved Matter . | . . . . Retrieved Components . | . . . . Parts Scanalyzed . | . . . . Part Schematics Acquired . | . . . . Parts Damaged . | . . . . Bothacking | -11 -10 -10 -9 ------------ Run | Yrd Mat Min Mat Used RIF Installer . | . . . . Robots Hacked . | . . . . Non-combat . | . . . . Combat . | . . . . Robot Hacks Applied . | . . . . Relay Couplers Released . | . . . . Fabnet Peak Effective % . | . . . . Robots Rewired . | . . . . Allies Hacked . | . . . . Hacks Repelled . | . . . . Allies | -11 -10 -10 -9 -------- Run | Yrd Mat Min Mat Total Allies . | . . . . Largest Group . | . . . . Highest-Rated Group . | . . . . Highest-Rated Ally . | . . . . Total Orders . | . . . . Ally Attacks . | . . . . Total Damage . | . . . . Kills . | . . . . Allies Corrupted . | . . . . Allies Melted . | . . . . Intel | -11 -10 -10 -9 ------- Run | Yrd Mat Min Mat Robot Analysis Total . | . . . . Derelict Logs Recovered . | . . . . Drone Launches . | . . . . Drone Recoveries . | . . . . Exploration | -11 -10 -10 -9 ------------- Run | Yrd Mat Min Mat Turns Passed 512 | 43 46 137 286 Spaces Moved 343 | 42 55 69 177 Core 4 | 4 . . . Treads . | . . . . Legs . | . . . . Wheels 95 | 38 55 2 . Hover . | . . . . Flight 244 | . . 67 177 Fastest Speed 37 | 50 80 80 37 Average Speed 105 | 77 80 117 114 Slowest Speed 520 | 80 80 205 520 Overloaded Moves . | . . . . Propulsion Burnouts . | . . . . Robots Hopped 1 | . . . 1 Cave-ins Triggered . | . . . . Exploration Rate (%) 15 | 4 20 23 16 Regions Visited 3 Branch Regions 1 Pre-discovered Areas . | . . . . Known Exits Taken . | . . . . Unknown Exits Taken 3 | 1 1 1 . Scrap Searched . | . . . . Spaces Dug . | . . . . Terrain Destroyed . | . . . . Melee . | . . . . Projectile . | . . . . AOE . | . . . . Terrain Rammed . | . . . . Walls Destroyed . | . . . . Machines Disabled . | . . . . Actions | -11 -10 -10 -9 --------- Run | Yrd Mat Min Mat Total 427 | 49 56 95 227 Wait 12 | . . . 12 Move 338 | 41 54 68 175 Hop 1 | . . . 1 Pick Up 13 | 2 1 5 5 Fast Attach 8 | 6 . . 2 Attach 6 | . . . 6 Detach . | . . . . Swap 5 | . 1 4 . Drop 8 | . . 2 6 Fire 36 | . . 16 20 Melee . | . . . . Ram . | . . . . Kick . | . . . . Crush . | . . . . Escape Stasis . | . . . . Rewire . | . . . . Trap . | . . . . Miscellaneous . | . . . . Route ------- -11/Scrapyard -10/Materials -10/Mines -9/Materials History --------- Turn | Location | Event 2 | -11/Scrapyard | Met Revision 17 25 | -11/Scrapyard | Discovered new exit (range 15) 44 | -11/Scrapyard | Entered Materials 82 | -10/Materials | Discovered new exit (range 8) 90 | -10/Materials | Entered Mines 222 | -10/Mines | Discovered new exit (range 5) 227 | -10/Mines | Entered Materials 227 | -9/Materials | Evolved 2 slots: Power x1, Weapon x1 312 | -9/Materials | Build established: Mutant 512 | -9/Materials | System corruption reached 10% 513 | -9/Materials | Self-destructed Last Messages --------------- 00399_ Acquired 12 matter. 00401_ Acquired 15 matter. 00403_ Acquired 16 matter. 00482_ Dropped Sml. Storage Unit. 00483_ Acquired Lrg. Storage Unit. 00489_ Flight Unit destroyed. 00495_ Critical hit (Burn: +37). 00497_ Lgt. Assault Rifle destroyed. 00497_ Sensor Array destroyed. 00497_ System corrupted by crushing effect (+1). 00497_ System corrupted by crushing effect (+3). 00498_ Critical hit (Burn: +37). 00499_ Critical hit (Smash). 00499_ Hvy. Assault Rifle destroyed. 00499_ System corrupted by crushing effect (+4). 00499_ Knocked back. 00511_ Flight Unit destroyed. 00511_ System corrupted by crushing effect (+1). 00511_ System corrupted by crushing effect (+5). 00513_ 7A%XB%QI6/M MN9P%66D9LG2 Map ----- +----------------------------------------------------+ | ????????????????????????????????????????????????? | | ????????????????????????????????????????????????? | | ????????????????????????????????????????????????? | | ????????????????????????????????????????????????? | | ????????????????????????????????????????????????? | | ????????????????????????????????????????????????? | | ????????????????????????????????????????????????? | | ????????????????????????????????????????????????? | | ????????????????????????????????????????????????? | | ????????????????????????????????????????????????? | | ????????????????????????????????????????????????? | | ????????????????????????????????????????????????? | | ????????????????????????????????????????????????? | | ????????????????????????????????????????????????? | | ????????????????????????????????????????????????? | | ???????????????????????????????????????????? ?? | | ???????????????????????????????????????????? #? | | ??????????????????????????????????????????## #? | | ?????????????????????????????????????????? #? | | ?????????????????????????????????????????? #? | | ?????????????????????????????????????????? #? | | ??????????????????????????????????????????? #? | | ??????????????????????????????????????????? #? | | ??????????????????????????????????????????? ^#? | | ?????????????????????######????????????????# #? | | ????????????????????##! @!##?????########### #? | | ????????????????????#! gb !#?????# # #? | | ????????????????????# #?????# !# #? | | ????????????????????### ##?????# # ## | | ??????????????????????# g######## """ """ + | | ??????????????????????# + """ """ # ## | | ??????????????????????# ######## """ """ # #? | | ??????????????????????## ##??????# # ## | | ???????????????????????#Y#???????# # | | ???????????????????????# #???????####+###### | | ???????????????????????# #??????????# #????# | | ???????????????????????# #?????????## ##???# | | ???????????????????????# ########### ##### | | ???????????????????????# | | ???????????????????????############# ########## | | ???????????????????????????????????#####????????? | | ????????????????????????????????????????????????? | | ????????????????????????????????????????????????? | | | | | | | | | | | | | | | +----------------------------------------------------+ Best States ------------- Heat Dissipation 28 Energy Generation 15 Energy Capacity 150 Matter Stores 256 Matter Capacity 300 Sight Range 16 Robot Scan Range 14 Terrain Scan Density 10 Evasion (%) 62 Item Schematics ----------------- None Robot Schematics ------------------ None Fabricated ------------ Nothing Alien Tech Used ----------------- None Achievements -------------- None Challenges ------------ None Game ------ Seed MicrowarpImprinterSplitter Manual? 0 Play Time 00:09:50 Cumulative 7.1 hours Start 2024.09.12 @ 09:49:14 End 2024.09.12 @ 09:56:31 Sessions 1 Manual Loads 0 Difficulty Rogue Special Mode None Game No. 32 Rogue 32 Adventurer 0 Explorer 0 Win Type - Total 0 Types 0/0/0/0/0/0/0/0/0 Lore% 3 Gallery% 14 Achievement% 12 Wizard Run 0 Options --------- Layout 2 ASCII 0 Keyboard 0 Movement Mouse Keybinds 0 Fullscreen 1 Font 16/SmallcapsGlow Map View 27x23 Zoom Use 14% Tactical HUD 1 Map Filters NONE Filters NONE Steam 1 RUN: f9be1ec3-cfb8-4015-ab5d-ceafa7375b3c